lending/lending_fUSD_20250819
["ID","MTS","AMOUNT","RATE_DAILY","PERIOD"]
[380254293,1755629083807,-956.51,0.00022999,30]
[380254294,1755629083846,-6152.01,0.00022999,30]
[380254295,1755629084324,-2552.28,0.00022999,30]
[380254296,1755629084364,-2106.62,0.00022999,30]
[380254297,1755629084400,-400.0,0.00022999,30]
[380254298,1755629084436,-1463.05,0.00022999,30]
[380254299,1755629084471,-400.0,0.00022999,30]
[380254300,1755629084504,-400.0,0.00022999,30]
[380254301,1755629084539,-654.84,0.00022999,30]
[380254302,1755629084574,-1252.69,0.00022999,30]
[380254303,1755629084608,-539.21,0.00022999,30]
[380254304,1755629084644,-400.0,0.00022999,30]
[380254305,1755629084679,-469.47,0.00022999,30]
[380254306,1755629084714,-3297.99,0.00022999,30]
[380254307,1755629084749,-9279.21,0.00022999,30]
[380254308,1755629084784,-2211.33,0.00022999,30]
[380254309,1755629084818,-408.73536826,0.00022999,30]
[380254310,1755629084851,-966.710208,0.00022999,30]
[380254311,1755629084886,-519.14,0.00022999,30]
[380254312,1755629084920,-400.0,0.00022999,30]
[380254313,1755629084956,-400.0,0.00022999,30]
[380254314,1755629084991,-72872.264858,0.00022999,30]
[380254315,1755629085024,-5712.59,0.00022999,30]
[380254316,1755629085058,-400.0,0.00022999,30]
[380254317,1755629085095,-1011.83,0.00022999,30]
[380254318,1755629085132,-1166.531897,0.00022999,30]
[380254319,1755629085169,-2168.38,0.00022999,30]
[380254320,1755629085207,-2229.95,0.00022999,30]
[380254321,1755629085247,-2816.25,0.00022999,30]
[380254322,1755629085285,-2039.77,0.00022999,30]
[380254323,1755629085322,-400.0,0.00022999,30]
[380254324,1755629085361,-1860.26,0.00022999,30]
[380254325,1755629085398,-400.0,0.00022999,30]
[380254326,1755629085434,-400.0,0.00022999,30]
[380254327,1755629085470,-1143.82,0.00022999,30]
[380254328,1755629085505,-1957.13,0.00022999,30]
[380254329,1755629085540,-750.34,0.00022999,30]
[380254330,1755629085575,-804.4,0.00022999,30]
[380254331,1755629085608,-812.98,0.00022999,30]
[380254332,1755629085642,-923.75,0.00022999,30]
[380254333,1755629085675,-2489.51,0.00022999,30]
[380254334,1755629085708,-1264.14,0.00022999,30]
[380254335,1755629085742,-8744.55,0.00022999,30]
[380254336,1755629085775,-5159.146464,0.00022999,30]
[380254337,1755629085808,-1256.72,0.00022999,30]
[380254338,1755629085844,-400.0,0.00022999,30]
[380254339,1755629085878,-400.0,0.00022999,30]
[380254340,1755629085913,-1560.57,0.00022999,30]
[380254341,1755629085946,-3603.61,0.00022999,30]
[380254342,1755629085979,-628.22,0.00022999,30]
[380254343,1755629086013,-2333.41,0.00022999,30]
[380254344,1755629086049,-400.0,0.00022999,30]
[380254345,1755629086088,-514.14,0.00022999,30]
[380254346,1755629086126,-4351.11,0.00022999,30]
[380254347,1755629086162,-1048.78,0.00022999,30]
[380254348,1755629086200,-411.32761601,0.00022999,30]
[380254349,1755629086240,-804.4,0.00022999,30]
[380254350,1755629086275,-804.4,0.00022999,30]
[380254351,1755629086314,-804.4,0.00022999,30]
[380254352,1755629086348,-804.4,0.00022999,30]
[380254353,1755629086382,-400.0,0.00022999,30]
[380254354,1755629086417,-804.4,0.00022999,30]
[380254355,1755629086451,-804.4,0.00022999,30]
[380254356,1755629086484,-2704.82,0.00022999,30]
[380254357,1755629086521,-804.4,0.00022999,30]
[380254358,1755629086555,-1011.63,0.00022999,30]
[380254359,1755629086590,-804.4,0.00022999,30]
[380254360,1755629086624,-804.4,0.00022999,30]
[380254361,1755629086657,-400.0,0.00022999,30]
[380254362,1755629086690,-6491.26,0.00022999,30]
[380254363,1755629086723,-804.4,0.00022999,30]
[380254364,1755629086756,-804.4,0.00022999,30]
[380254365,1755629086789,-804.4,0.00022999,30]
[380254366,1755629086821,-804.4,0.00022999,30]
[380254367,1755629086855,-808.67,0.00022999,30]
[380254368,1755629086889,-804.4,0.00022999,30]
[380254369,1755629086925,-410.03,0.00022999,30]
[380254370,1755629086960,-804.4,0.00022999,30]
[380254371,1755629086994,-804.4,0.00022999,30]
[380254372,1755629087032,-2326.39,0.00022999,30]
[380254373,1755629087070,-11599.75,0.00022999,30]
[380254374,1755629087104,-400.0,0.00022999,30]
[380254375,1755629087140,-804.4,0.00022999,30]
[380254376,1755629087176,-536.81,0.00022999,30]
[380254377,1755629087212,-804.4,0.00022999,30]
[380254378,1755629087248,-804.4,0.00022999,30]
[380254379,1755629087284,-804.4,0.00022999,30]
[380254380,1755629087320,-804.4,0.00022999,30]
[380254381,1755629087356,-400.0,0.00022999,30]
[380254382,1755629087391,-804.4,0.00022999,30]
[380254383,1755629087426,-804.48481913,0.00022999,30]
[380254384,1755629087460,-400.0,0.00022999,30]
[380254385,1755629087495,-461.27,0.00022999,30]
[380254386,1755629087528,-400.0,0.00022999,30]
[380254387,1755629087563,-400.0,0.00022999,30]
[380254388,1755629087597,-1104.81,0.00022999,30]
[380254389,1755629087630,-400.0,0.00022999,30]
[380254390,1755629087666,-1932.78,0.00022999,30]
[380254391,1755629087699,-422.25,0.00022999,30]
[380254392,1755629087736,-2512.15,0.00022999,30]
[380254393,1755629087771,-442.37,0.00022999,30]
[380254394,1755629087806,-2928.41,0.00022999,30]
[380254395,1755629087844,-400.0,0.00022999,30]
[380254396,1755629087876,-493.74,0.00022999,30]
[380254397,1755629087910,-3746.15,0.00022999,30]
[380254398,1755629087943,-400.0,0.00022999,30]
[380254399,1755629087977,-400.0,0.00022999,30]
[380254400,1755629088011,-612.13,0.00022999,30]
[380254401,1755629088045,-400.0,0.00022999,30]
[380254402,1755629088080,-400.0,0.00022999,30]
[380254403,1755629088120,-5553.89,0.00022999,30]
[380254404,1755629088160,-2278.77,0.00022999,30]
[380254405,1755629088199,-400.0,0.00022999,30]
[380254406,1755629088239,-456.52,0.00022999,30]
[380254407,1755629088278,-909.38,0.00022999,30]
[380254408,1755629088313,-909.38,0.00022999,30]
[380254409,1755629088694,-909.38,0.00022999,30]
[380254410,1755629088736,-2073.47,0.00022999,30]
[380254411,1755629088773,-909.38,0.00022999,30]
[380254412,1755629088808,-909.38,0.00022999,30]
[380254413,1755629088844,-400.0,0.00022999,30]
[380254414,1755629088881,-909.38,0.00022999,30]
[380254415,1755629088916,-2651.0,0.00022999,30]
[380254416,1755629088950,-909.38,0.00022999,30]
[380254417,1755629088985,-1355.75,0.00022999,30]
[380254418,1755629089020,-909.38,0.00022999,30]
[380254419,1755629089056,-400.0,0.00022999,30]
[380254420,1755629089093,-909.38,0.00022999,30]
[380254421,1755629089133,-3030.06,0.00022999,30]
[380254422,1755629089177,-909.38,0.00022999,30]
[380254423,1755629089223,-1706.92,0.00022999,30]
[380254424,1755629089266,-957.1,0.00022999,30]
[380254425,1755629089301,-909.38,0.00022999,30]
[380254426,1755629089338,-3828.85,0.00022999,30]
[380254427,1755629089372,-909.38,0.00022999,30]
[380254428,1755629089408,-3111.55,0.00022999,30]
[380254429,1755629089444,-909.38,0.00022999,30]
[380254430,1755629089479,-909.38,0.00022999,30]
[380254431,1755629089513,-4582.2,0.00022999,30]
[380254432,1755629089549,-400.0,0.00022999,30]
[380254433,1755629089585,-909.38,0.00022999,30]
[380254434,1755629089622,-667.04,0.00022999,30]
[380254435,1755629089659,-2555.68,0.00022999,30]
[380254436,1755629089696,-909.38,0.00022999,30]
[380254437,1755629089733,-3194.01,0.00022999,30]
[380254438,1755629089768,-909.38,0.00022999,30]
[380254439,1755629089803,-909.38,0.00022999,30]
[380254440,1755629089839,-2646.03,0.00022999,30]
[380254441,1755629089875,-909.38,0.00022999,30]
[380254442,1755629089911,-909.38,0.00022999,30]
[380254443,1755629089949,-909.38,0.00022999,30]
[380254444,1755629089984,-10190.77,0.00022999,30]
[380254445,1755629090022,-400.0,0.00022999,30]
[380254446,1755629090062,-909.38,0.00022999,30]
[380254447,1755629090104,-909.38,0.00022999,30]
[380254448,1755629090146,-400.0,0.00022999,30]
[380254449,1755629090188,-909.41430059,0.00022999,30]
[380254450,1755629090229,-154.45987717,0.00022999,30]
[380254451,1755629090266,-2748.94,0.00022999,30]
[380254452,1755629090304,-7778.873692,0.00022999,30]
[380254453,1755629090341,-400.0,0.00022999,30]
[380254454,1755629090376,-2420.0,0.00022999,30]
[380254455,1755629090412,-400.0,0.00022999,30]
[380254456,1755629090446,-3355.82,0.00022999,30]
[380254457,1755629090480,-400.0,0.00022999,30]
[380254458,1755629090514,-3279.12,0.00022999,30]
[380254459,1755629090549,-1391.13,0.00022999,30]
[380254460,1755629090584,-667.04,0.00022999,30]
[380254461,1755629090624,-14988.59,0.00022999,30]
[380254462,1755629090665,-400.0,0.00022999,30]
[380254463,1755629090702,-400.0,0.00022999,30]
[380254464,1755629090740,-400.0,0.00022999,30]
[380254465,1755629090778,-10848.35,0.00022999,30]
[380254466,1755629090814,-1197.04,0.00022999,30]
[380254467,1755629090852,-5368.681362,0.00022999,30]
[380254468,1755629090887,-830.91,0.00022999,30]
[380254469,1755629090923,-739.42,0.00022999,30]
[380254470,1755629090960,-513.07,0.00022999,30]
[380254471,1755629090997,-408.98699439,0.00022999,30]
[380254472,1755629091035,-9434.24,0.00022999,30]
[380254473,1755629091073,-400.0,0.00022999,30]
[380254474,1755629091110,-3333.0,0.00022999,30]
[380254475,1755629091152,-400.0,0.00022999,30]
[380254476,1755629091194,-6879.92975,0.00022999,30]
[380254477,1755629091239,-400.0,0.00022999,30]
[380254478,1755629091280,-461.83844449,0.00022999,30]
[380254479,1755629091324,-2881.17,0.00022999,30]
[380254480,1755629091364,-400.0,0.00022999,30]
[380254481,1755629091403,-1904.09,0.00022999,30]
[380254482,1755629091436,-3855.5,0.00022999,30]
[380254483,1755629091469,-509.8,0.00022999,30]
[380254484,1755629091504,-400.0,0.00022999,30]
[380254485,1755629091538,-864.69,0.00022999,30]
[380254486,1755629091572,-3812.89,0.00022999,30]
[380254487,1755629091606,-2620.71,0.00022999,30]
[380254488,1755629091639,-1411.58,0.00022999,30]
[380254489,1755629091671,-400.0,0.00022999,30]
[380254490,1755629091704,-1000.42,0.00022999,30]
[380254491,1755629091738,-438.51,0.00022999,30]
[380254492,1755629091771,-400.0,0.00022999,30]
[380254493,1755629091804,-3032.36,0.00022999,30]
[380254494,1755629091839,-3363.78,0.00022999,30]
[380254495,1755629091873,-2892.26,0.00022999,30]
[380254496,1755629091906,-271.52192302,0.00022999,30]
[380254497,1755629091940,-1498.43,0.00022999,30]
[380254498,1755629091973,-2279.78,0.00022999,30]
[380254499,1755629092009,-400.0,0.00022999,30]
[380254500,1755629092044,-2892.26,0.00022999,30]
[380254501,1755629092083,-400.0,0.00022999,30]
[380254502,1755629092118,-4110.64,0.00022999,30]
[380254503,1755629092161,-400.0,0.00022999,30]
[380254504,1755629092203,-400.0,0.00022999,30]
[380254505,1755629092243,-1244.95,0.00022999,30]
[380254506,1755629092282,-3456.6,0.00022999,30]
[380254507,1755629092321,-2479.07,0.00022999,30]
[380254508,1755629092357,-3050.97,0.00022999,30]
[380254509,1755629092392,-400.0,0.00022999,30]
[380254510,1755629092426,-1886.29,0.00022999,30]
[380254511,1755629092460,-2284.8,0.00022999,30]
[380254512,1755629092494,-565.49,0.00022999,30]
[380254513,1755629092527,-711.64,0.00022999,30]
[380254514,1755629092561,-2684.38,0.00022999,30]
[380254515,1755629092597,-2290.11,0.00022999,30]
[380254516,1755629092630,-400.0,0.00022999,30]
[380254517,1755629092666,-3431.32,0.00022999,30]
[380254518,1755629092702,-499.72,0.00022999,30]
[380254519,1755629092738,-491.72,0.00022999,30]
[380254520,1755629092774,-400.0,0.00022999,30]
[380254521,1755629092811,-400.0,0.00022999,30]
[380254522,1755629092856,-2658.88,0.00022999,30]
[380254523,1755629092896,-444.64,0.00022999,30]
[380254524,1755629093234,-3182.87,0.00022999,30]
[380254525,1755629093275,-1588.74,0.00022999,30]
[380254526,1755629093313,-545.6,0.00022999,30]
[380254527,1755629093353,-2221.92,0.00022999,30]
[380254528,1755629093390,-400.0,0.00022999,30]
[380254529,1755629093424,-400.0,0.00022999,30]
[380254530,1755629093459,-3761.5,0.00022999,30]
[380254531,1755629093496,-468.23218654,0.00022999,30]
[380254532,1755629093533,-400.0,0.00022999,30]
[380254533,1755629093569,-2690.35,0.00022999,30]
[380254534,1755629093604,-435.01,0.00022999,30]
[380254535,1755629093639,-400.0,0.00022999,30]
[380254536,1755629093674,-3260.39,0.00022999,30]
[380254537,1755629093708,-2290.96,0.00022999,30]
[380254538,1755629093742,-400.0,0.00022999,30]
[380254539,1755629093778,-1727.0,0.00022999,30]
[380254540,1755629093812,-1178.6,0.00022999,30]
[380254541,1755629093846,-400.0,0.00022999,30]
[380254542,1755629093882,-1388.4,0.00022999,30]
[380254543,1755629093918,-400.0,0.00022999,30]
[380254544,1755629093952,-400.0,0.00022999,30]
[380254545,1755629093986,-2580.38,0.00022999,30]
[380254546,1755629094022,-3089.3,0.00022999,30]
[380254547,1755629094057,-400.0,0.00022999,30]
[380254548,1755629094095,-3674.78,0.00022999,30]
[380254549,1755629094132,-400.0,0.00022999,30]
[380254550,1755629094169,-857.04,0.00022999,30]
[380254551,1755629094207,-1218.21,0.00022999,30]
[380254552,1755629094245,-6424.37,0.00022999,30]
[380254553,1755629094283,-3272.52,0.00022999,30]
[380254554,1755629094322,-2850.07,0.00022999,30]
[380254555,1755629094359,-400.0,0.00022999,30]
[380254556,1755629094396,-400.0,0.00022999,30]
[380254557,1755629094433,-400.0,0.00022999,30]
[380254558,1755629094469,-483.4,0.00022999,30]
[380254559,1755629094507,-2380.95,0.00022999,30]
[380254560,1755629094546,-5074.18,0.00022999,30]
[380254561,1755629094584,-400.0,0.00022999,30]
[380254562,1755629094630,-624.64,0.00022999,30]
[380254563,1755629094675,-2456.64,0.00022999,30]
[380254564,1755629094718,-1283.75,0.00022999,30]
[380254565,1755629094758,-1171.22,0.00022999,30]
[380254566,1755629094795,-400.0,0.00022999,30]
[380254567,1755629094832,-2540.16,0.00022999,30]
[380254568,1755629094871,-3982.73,0.00022999,30]
[380254569,1755629094910,-590.9,0.00022999,30]
[380254570,1755629094950,-3264.18,0.00022999,30]
[380254571,1755629094989,-2519.94,0.00022999,30]
[380254572,1755629095029,-470.87,0.00022999,30]
[380254573,1755629095071,-493.02,0.00022999,30]
[380254574,1755629095115,-1619.58,0.00022999,30]
[380254575,1755629095164,-952.43,0.00022999,30]
[380254576,1755629095208,-925.83,0.00022999,30]
[380254577,1755629095250,-400.0,0.00022999,30]
[380254578,1755629095290,-904.73,0.00022999,30]
[380254579,1755629095334,-400.0,0.00022999,30]
[380254580,1755629095381,-2120.71,0.00022999,30]
[380254581,1755629095431,-485.02,0.00022999,30]
[380254582,1755629095479,-15113.2,0.00022999,30]
[380254583,1755629095526,-4032.61,0.00022999,30]
[380254584,1755629095574,-1942.19,0.00022999,30]
[380254585,1755629095616,-4801.99,0.00022999,30]
[380254586,1755629095660,-957.89,0.00022999,30]
[380254587,1755629095705,-1582.9,0.00022999,30]
[380254588,1755629095748,-954.81,0.00022999,30]
[380254589,1755629095787,-400.0,0.00022999,30]
[380254590,1755629095825,-1660.82,0.00022999,30]
[380254591,1755629095862,-400.0,0.00022999,30]
[380254592,1755629095897,-400.0,0.00022999,30]
[380254593,1755629095933,-400.0,0.00022999,30]
[380254594,1755629095969,-400.0,0.00022999,30]
[380254595,1755629096006,-910.42,0.00022999,30]
[380254596,1755629096044,-1485.26,0.00022999,30]
[380254597,1755629096080,-2428.53,0.00022999,30]
[380254598,1755629096118,-1481.25,0.00022999,30]
[380254599,1755629096163,-400.0,0.00022999,30]
[380254600,1755629096206,-7829.02,0.00022999,30]
[380254601,1755629096248,-6267.03,0.00022999,30]
[380254602,1755629096286,-3080.38,0.00022999,30]
[380254603,1755629096327,-1106.61,0.00022999,30]
[380254604,1755629096369,-400.0,0.00022999,30]
[380254605,1755629096412,-5900.0,0.00022999,30]
[380254606,1755629096451,-400.0,0.00022999,30]
[380254607,1755629096486,-1275.31,0.00022999,30]
[380254608,1755629096528,-400.0,0.00022999,30]
[380254609,1755629096565,-2245.56,0.00022999,30]
[380254610,1755629096603,-400.0,0.00022999,30]
[380254611,1755629096639,-3213.33,0.00022999,30]
[380254612,1755629096674,-400.0,0.00022999,30]
[380254613,1755629096716,-508.35,0.00022999,30]
[380254614,1755629096759,-1819.77,0.00022999,30]
[380254615,1755629096803,-400.0,0.00022999,30]
[380254616,1755629096847,-400.0,0.00022999,30]
[380254617,1755629096883,-1393.08,0.00022999,30]
[380254618,1755629096918,-2872.08,0.00022999,30]
[380254619,1755629096953,-5788.88,0.00022999,30]
[380254620,1755629096989,-750.82,0.00022999,30]
[380254621,1755629097026,-400.0,0.00022999,30]
[380254622,1755629097061,-9298.97,0.00022999,30]
[380254623,1755629097099,-849.04,0.00022999,30]
[380254624,1755629097139,-7046.27,0.00022999,30]
[380254625,1755629097178,-2808.37,0.00022999,30]
[380254626,1755629097216,-3310.66,0.00022999,30]
[380254627,1755629097254,-1073.77,0.00022999,30]
[380254628,1755629097288,-2806.48,0.00022999,30]
[380254629,1755629097323,-400.0,0.00022999,30]
[380254630,1755629097365,-1108.26,0.00022999,30]
[380254631,1755629097409,-3632.79,0.00022999,30]
[380254632,1755629097453,-411.16,0.00022999,30]
[380254633,1755629097490,-400.0,0.00022999,30]
[380254634,1755629097529,-2238.21,0.00022999,30]
[380254635,1755629097568,-400.0,0.00022999,30]
[380254636,1755629097607,-1263.11,0.00022999,30]
[380254637,1755629097646,-4823.93,0.00022999,30]
[380254638,1755629097958,-1826.5,0.00022999,30]
[380254639,1755629097999,-1860.35,0.00022999,30]
[380254640,1755629098040,-1169.66,0.00022999,30]
[380254641,1755629098082,-400.0,0.00022999,30]
[380254642,1755629098123,-400.0,0.00022999,30]
[380254643,1755629098170,-6274.25,0.00022999,30]
[380254644,1755629098210,-400.0,0.00022999,30]
[380254645,1755629098250,-803.9,0.00022999,30]
[380254646,1755629098287,-982.14,0.00022999,30]
[380254647,1755629098322,-406.36,0.00022999,30]
[380254648,1755629098357,-457.75,0.00022999,30]
[380254649,1755629098393,-2361.69,0.00022999,30]
[380254650,1755629098428,-3923.76,0.00022999,30]
[380254651,1755629098466,-9069.8,0.00022999,30]
[380254652,1755629098501,-400.0,0.00022999,30]
[380254653,1755629098537,-2112.13,0.00022999,30]
[380254654,1755629098573,-1003.38,0.00022999,30]
[380254655,1755629098608,-314.05085298,0.00022999,30]
[380254656,1755629098643,-400.0,0.00022999,30]
[380254657,1755629098677,-400.0,0.00022999,30]
[380254658,1755629098712,-6227.88,0.00022999,30]
[380254659,1755629098747,-796.02,0.00022999,30]
[380254660,1755629098783,-2177.12,0.00022999,30]
[380254661,1755629098821,-897.52,0.00022999,30]
[380254662,1755629098858,-400.0,0.00022999,30]
[380254663,1755629098892,-437.94,0.00022999,30]
[380254664,1755629098926,-3741.1,0.00022999,30]
[380254665,1755629098961,-400.0,0.00022999,30]
[380254666,1755629098995,-1519.99,0.00022999,30]
[380254667,1755629099029,-3765.87,0.00022999,30]
[380254668,1755629099065,-1383.47,0.00022999,30]
[380254669,1755629099102,-985.17,0.00022999,30]
[380254670,1755629099138,-400.0,0.00022999,30]
[380254671,1755629099175,-400.0,0.00022999,30]
[380254672,1755629099214,-3489.47,0.00022999,30]
[380254673,1755629099251,-924.55,0.00022999,30]
[380254674,1755629099288,-6294.15,0.00022999,30]
[380254675,1755629099330,-923.52,0.00022999,30]
[380254676,1755629099366,-400.0,0.00022999,30]
[380254677,1755629099404,-1598.61,0.00022999,30]
[380254678,1755629099442,-2757.16,0.00022999,30]
[380254679,1755629099477,-3035.89,0.00022999,30]
[380254680,1755629099514,-400.0,0.00022999,30]
[380254681,1755629099548,-400.0,0.00022999,30]
[380254682,1755629099582,-572.21,0.00022999,30]
[380254683,1755629099616,-400.0,0.00022999,30]
[380254684,1755629099652,-667.94,0.00022999,30]
[380254685,1755629099687,-272.05654724,0.00022999,30]
[380254686,1755629099721,-610.47,0.00022999,30]
[380254687,1755629099758,-400.0,0.00022999,30]
[380254688,1755629099793,-626.65,0.00022999,30]
[380254689,1755629099828,-400.0,0.00022999,30]
[380254690,1755629099864,-2555.96,0.00022999,30]
[380254691,1755629099901,-3193.55,0.00022999,30]
[380254692,1755629099940,-400.0,0.00022999,30]
[380254693,1755629099980,-400.0,0.00022999,30]
[380254694,1755629100022,-3167.42,0.00022999,30]
[380254695,1755629100064,-3316.1,0.00022999,30]
[380254696,1755629100109,-4009.21,0.00022999,30]
[380254697,1755629100158,-321.90350028,0.00022999,30]
[380254698,1755629100207,-2712.35,0.00022999,30]
[380254699,1755629100255,-16553.6,0.00022999,30]
[380254700,1755629100297,-436.93,0.00022999,30]
[380254701,1755629100342,-2160.61,0.00022999,30]
[380254702,1755629100386,-400.0,0.00022999,30]
[380254703,1755629100432,-400.0,0.00022999,30]
[380254704,1755629100477,-2880.19,0.00022999,30]
[380254705,1755629100521,-3616.04,0.00022999,30]
[380254706,1755629100566,-2042.46,0.00022999,30]
[380254707,1755629100617,-426.8,0.00022999,30]
[380254708,1755629100662,-1114.17,0.00022999,30]
[380254709,1755629100706,-5980.76,0.00022999,30]
[380254710,1755629100748,-400.0,0.00022999,30]
[380254711,1755629100789,-400.0,0.00022999,30]
[380254712,1755629100834,-400.0,0.00022999,30]
[380254713,1755629100874,-5917.27,0.00022999,30]
[380254714,1755629100911,-400.0,0.00022999,30]
[380254715,1755629100948,-1107.03,0.00022999,30]
[380254716,1755629100984,-837.96,0.00022999,30]
[380254717,1755629101022,-410.663295,0.00022999,30]
[380254718,1755629101057,-400.0,0.00022999,30]
[380254719,1755629101108,-5216.74,0.00022999,30]
[380254720,1755629101147,-2306.37,0.00022999,30]
[380254721,1755629101184,-2999.58,0.00022999,30]
[380254722,1755629101223,-4211.89,0.00022999,30]
[380254723,1755629101263,-4672.86,0.00022999,30]
[380254724,1755629101304,-400.0,0.00022999,30]
[380254725,1755629101351,-400.0,0.00022999,30]
[380254726,1755629101394,-512.27172932,0.00022999,30]
[380254727,1755629101432,-4024.6,0.00022999,30]
[380254728,1755629101469,-400.0,0.00022999,30]
[380254729,1755629101504,-400.0,0.00022999,30]
[380254730,1755629101539,-9755.55,0.00022999,30]
[380254731,1755629101577,-400.0,0.00022999,30]
[380254732,1755629101613,-400.0,0.00022999,30]
[380254733,1755629101651,-673.87,0.00022999,30]
[380254734,1755629101688,-2406.12,0.00022999,30]
[380254735,1755629101726,-400.0,0.00022999,30]
[380254736,1755629101765,-1884.2,0.00022999,30]
[380254737,1755629101803,-1299.7,0.00022999,30]
[380254738,1755629101845,-2024.98,0.00022999,30]
[380254739,1755629101882,-400.0,0.00022999,30]
[380254740,1755629101918,-2371.02,0.00022999,30]
[380254741,1755629101955,-2196.77,0.00022999,30]
[380254742,1755629101991,-1960.78,0.00022999,30]
[380254743,1755629102027,-677.84,0.00022999,30]
[380254744,1755629102062,-400.0,0.00022999,30]
[380254745,1755629102100,-404.78,0.00022999,30]
[380254746,1755629102143,-400.0,0.00022999,30]
[380254747,1755629102180,-676.66,0.00022999,30]
[380254748,1755629102217,-400.0,0.00022999,30]
[380254749,1755629102254,-2622.74,0.00022999,30]
[380254750,1755629102288,-2487.77,0.00022999,30]
[380254751,1755629102330,-400.0,0.00022999,30]
[380254752,1755629102366,-1106.6,0.00022999,30]
[380254753,1755629102827,-400.0,0.00022999,30]
[380254754,1755629102863,-595.97,0.00022999,30]
[380254755,1755629102900,-400.0,0.00022999,30]
[380254756,1755629102941,-400.0,0.00022999,30]
[380254757,1755629102977,-425.67,0.00022999,30]
[380254758,1755629103011,-4203.55,0.00022999,30]
[380254759,1755629103052,-472.39,0.00022999,30]
[380254760,1755629103092,-400.0,0.00022999,30]
[380254761,1755629103134,-2820.21,0.00022999,30]
[380254762,1755629103177,-1971.08,0.00022999,30]
[380254763,1755629103220,-585.0,0.00022999,30]
[380254764,1755629103261,-400.0,0.00022999,30]
[380254765,1755629103306,-400.0,0.00022999,30]
[380254766,1755629103349,-1294.68,0.00022999,30]
[380254767,1755629103396,-1024.24,0.00022999,30]
[380254768,1755629103442,-13799.64,0.00022999,30]
[380254769,1755629103487,-400.0,0.00022999,30]
[380254770,1755629103532,-400.0,0.00022999,30]
[380254771,1755629103579,-4928.88,0.00022999,30]
[380254772,1755629103625,-400.0,0.00022999,30]
[380254773,1755629103670,-3949.14,0.00022999,30]
[380254774,1755629103715,-465.63,0.00022999,30]
[380254775,1755629103761,-16565.532356,0.00022999,30]
[380254776,1755629103809,-150.0,0.00023,30]
[380254777,1755629103857,-500.0,0.00023,30]
[380254778,1755629103903,-500.0,0.00023,30]
[380254779,1755629103952,-500.0,0.00023,30]
[380254780,1755629104001,-154.0,0.00023,30]
[380254781,1755629104055,-154.0,0.00023,30]
[380254782,1755629104111,-154.0,0.00023,30]
[380254783,1755629104165,-500.0,0.00023,30]
[380254784,1755629104213,-500.0,0.00023,30]
[380254785,1755629104258,-212.02104404,0.00023,30]
[380254786,1755629104296,-150.0,0.00023,30]
[380254787,1755629104339,-150.0,0.00023,30]
[380254788,1755629104384,-150.0,0.00023,30]
[380254789,1755629104428,-150.0,0.00023,30]
[380254790,1755629104472,-150.0,0.00023,30]
[380254791,1755629104517,-150.0,0.00023,30]
[380254792,1755629104560,-500.0,0.00023,30]